[Event "Asian Amateur Rapid 2024"]
[Site "Al Ain"]
[Date "2024.12.15"]
[Round "6.22"]
[White "Dadabaev, Zhanybek"]
[Black "Olimjonov, Muhammadziyo"]
[Result "1-0"]
[ECO "A48"]
[WhiteElo "1927"]
[BlackElo "1505"]
[Annotator "NA COMBH"]
[PlyCount "99"]
[EventDate "2024.12.15"]
[EventType "swiss"]
[EventCountry "UAE"]
[SourceTitle "playchess.com"]
[Source "ChessBase"]
[SourceQuality "1"]
[TimeControl "900+10"]

1. d4 {[%emt 0:00:02]} Nf6 {[%emt 0:00:02]} 2. Bf4 {[%emt 0:00:01]} g6 {[%emt 0:00:01]} 3. Nf3 {[%emt 0:00:05]} Bg7 {[%emt 0:00:01]} 4. h3 {[%emt 0:00:04]} d6 {[%emt 0:00:01]} 5. e3 {[%emt 0:00:02]} O-O {[%emt 0:00:02]} 6. Be2 {[%emt 0:00:01]} Re8 {[%emt 0:00:03]} 7. O-O {[%emt 0:00:03]} Nbd7 {[%emt 0:00:01]} 8. Bh2 {[%emt 0:00:24]} e5 {[%emt 0:00:03]} 9. dxe5 {[%emt 0:00:06]} dxe5 {[%emt 0:00:05]} 10. Nxe5 {[%emt 0:02:07]} Ne4 {[%emt 0:00:14]} 11. Nd3 {[%emt 0:00:42]} c5 {[%emt 0:00:10]} 12. c3 {[%emt 0:00:26]} b6 {[%emt 0:00:23]} 13. Na3 {[%emt 0:01:05]} Bb7 {[%emt 0:00:07]} 14. Nb5 {[%emt 0:00:14]} Re7 {[%emt 0:00:51]} 15. f3 {[%emt 0:01:17]} Nef6 {[%emt 0:00:14]} 16. e4 {[%emt 0:00:05]} Ne8 {[%emt 0:00:28]} 17. Qc2 {[%emt 0:01:29]} a6 {[%emt 0:00:02]} 18. Nd6 {[%emt 0:00:10]} Nxd6 {[%emt 0:00:06]} 19. Bxd6 {[%emt 0:00:02]} Re6 {[%emt 0:00:01]} 20. Bh2 {[%emt 0:00:16]} Ne5 {[%emt 0:00:22]} 21. Nf4 {[%emt 0:00:21]} Rd6 {[%emt 0:00:06]} 22. Rad1 {[%emt 0:00:04]} Qe7 {[%emt 0:00:27]} 23. Rxd6 {[%emt 0:00:10]} Qxd6 {[%emt 0:00:01]} 24. Rd1 {[%emt 0:00:16]} Qe7 {[%emt 0:00:03]} 25. Qb3 {[%emt 0:00:32]} b5 {[%emt 0:00:57]} 26. Nd5 {[%emt 0:00:20]} Qe6 {[%emt 0:01:13]} 27. Nc7 {[%emt 0:01:54]} Qxb3 {[%emt 0:00:02]} 28. axb3 {[%emt 0:00:00]} Rc8 {[%emt 0:00:05]} 29. Nd5 {[%emt 0:00:02]} Kf8 {[%emt 0:00:16]} 30. Nb6 {[%emt 0:00:43]} Re8 {[%emt 0:00:51]} 31. Bxe5 {[%emt 0:00:33]} Bxe5 {[%emt 0:00:03]} 32. Nd7+ {[%emt 0:00:02]} Kg7 {[%emt 0:00:01]} 33. Nxe5 {[%emt 0:00:02]} Rxe5 {[%emt 0:00:02]} 34. Rd7 {[%emt 0:00:01]} Bc8 {[%emt 0:00:06]} 35. Rc7 {[%emt 0:00:28]} Be6 {[%emt 0:00:02]} 36. Bd1 {[%emt 0:00:08]} c4 {[%emt 0:00:20]} 37. b4 {[%emt 0:00:01]} Kh6 {[%emt 0:00:24]} 38. Bc2 {[%emt 0:00:12]} f5 {[%emt 0:00:02]} 39. f4 {[%emt 0:00:06]} Rxe4 {[%emt 0:00:10]} 40. Bxe4 {[%emt 0:00:01]} fxe4 {[%emt 0:00:01]} 41. Kf2 {[%emt 0:00:04]} g5 {[%emt 0:00:02]} 42. fxg5+ {[%emt 0:00:05]} Kxg5 {[%emt 0:00:02]} 43. Rxh7 {[%emt 0:00:02]} Kf4 {[%emt 0:00:01]} 44. Rh4+ {[%emt 0:00:08]} Ke5 {[%emt 0:00:06]} 45. Ke3 {[%emt 0:00:02]} Bf5 {[%emt 0:00:02]} 46. Rh5 {[%emt 0:00:01]} Kf6 {[%emt 0:00:03]} 47. g4 {[%emt 0:00:12]} Bg6 {[%emt 0:00:02]} 48. Rc5 {[%emt 0:00:01]} Kg7 {[%emt 0:00:05]} 49. Rc6 {[%emt 0:00:02]} Be8 {[%emt 0:00:02] Check Result:#17} 50. Rxa6 {[%emt 0:00:03]} 1-0

[Event "Asian Amateur Rapid 2024"]
[Site "Al Ain"]
[Date "2024.12.15"]
[Round "6.23"]
[White "Manuwaruna, Sethun Neththaru"]
[Black "Ebenezer, Joseph"]
[Result "0-1"]
[ECO "A05"]
[WhiteElo "1933"]
[BlackElo "1993"]
[Annotator "NA COMBH"]
[PlyCount "101"]
[EventDate "2024.12.15"]
[EventType "swiss"]
[EventCountry "UAE"]
[SourceTitle "playchess.com"]
[Source "ChessBase"]
[SourceQuality "1"]
[TimeControl "900+10"]

1. Nf3 {[%emt 0:00:03]} Nf6 {[%emt 0:00:02]} 2. g3 {[%emt 0:00:02]} g6 {[%emt 0:00:01]} 3. Bg2 {[%emt 0:00:05]} Bg7 {[%emt 0:00:01]} 4. d3 {[%emt 0:00:02]} O-O {[%emt 0:00:03]} 5. e4 {[%emt 0:00:02]} d6 {[%emt 0:00:01]} 6. O-O {[%emt 0:00:03]} e5 {[%emt 0:00:06]} 7. Nc3 {[%emt 0:00:01]} Nc6 {[%emt 0:00:01]} 8. h3 {[%emt 0:00:44]} h6 {[%emt 0:00:05]} 9. Be3 {[%emt 0:00:02]} Kh7 {[%emt 0:00:08]} 10. Ne1 {[%emt 0:01:05]} Nd4 {[%emt 0:00:11]} 11. Ne2 {[%emt 0:00:48]} Nh5 {[%emt 0:00:13]} 12. c3 {[%emt 0:01:51]} Ne6 {[%emt 0:00:20]} 13. d4 {[%emt 0:01:24]} f5 {[%emt 0:00:45]} 14. dxe5 {[%emt 0:01:38]} dxe5 {[%emt 0:00:07]} 15. f4 {[%emt 0:02:02]} Qxd1 {[%emt 0:02:01]} 16. Rxd1 {[%emt 0:00:05]} exf4 {[%emt 0:00:10]} 17. gxf4 {[%emt 0:01:11]} c6 {[%emt 0:02:11]} 18. exf5 {[%emt 0:01:26]} gxf5 {[%emt 0:00:04]} 19. Nd3 {[%emt 0:01:33]} Nc7 {[%emt 0:00:17]} 20. Bf3 {[%emt 0:01:20]} Re8 {[%emt 0:01:18]} 21. Bd4 {[%emt 0:00:56]} Nf6 {[%emt 0:00:20]} 22. Ne5 {[%emt 0:00:17]} Be6 {[%emt 0:00:08]} 23. Ng3 {[%emt 0:00:44]} Nfd5 {[%emt 0:00:33]} 24. Bg2 {[%emt 0:00:33]} Bh8 {[%emt 0:02:19]} 25. c4 {[%emt 0:00:30]} Nf6 {[%emt 0:00:09]} 26. Kh2 {[%emt 0:00:15]} Rg8 {[%emt 0:00:10]} 27. Rg1 {[%emt 0:00:22]} Nce8 {[%emt 0:01:37]} 28. Bf3 {[%emt 0:00:06]} a5 {[%emt 0:01:31]} 29. Nh5 {[%emt 0:00:31]} Nxh5 {[%emt 0:00:33]} 30. Bxh5 {[%emt 0:00:10]} Bg7 {[%emt 0:02:03]} 31. Nf7 {[%emt 0:00:09]} Bxd4 {[%emt 0:00:21]} 32. Rxd4 {[%emt 0:00:13]} Rxg1 {[%emt 0:00:06]} 33. Kxg1 {[%emt 0:00:02]} Ng7 {[%emt 0:00:33]} 34. Rd6 {[%emt 0:00:18]} Rg8 {[%emt 0:01:01]} 35. Kf2 {[%emt 0:00:10]} Nxh5 {[%emt 0:00:06]} 36. Rxe6 {[%emt 0:00:04]} Nxf4 {[%emt 0:00:01]} 37. Re7 {[%emt 0:00:11]} Nxh3+ {[%emt 0:00:12]} 38. Kf3 {[%emt 0:00:05]} Rg7 {[%emt 0:00:00]} 39. Rxb7 {[%emt 0:00:08]} Ng5+ {[%emt 0:00:32]} 40. Nxg5+ {[%emt 0:00:01]} hxg5 {[%emt 0:00:01]} 41. Rb6 {[%emt 0:00:15]} g4+ {[%emt 0:00:28]} 42. Kg2 {[%emt 0:00:15]} Rc7 {[%emt 0:00:24]} 43. Ra6 {[%emt 0:00:12]} Kg6 {[%emt 0:00:03]} 44. Rxa5 {[%emt 0:00:07]} Rd7 {[%emt 0:00:14]} 45. b3 {[%emt 0:00:15]} Rd2+ {[%emt 0:00:08]} 46. Kg3 {[%emt 0:00:06]} Kg5 {[%emt 0:00:03]} 47. b4 {[%emt 0:00:20]} Rc2 {[%emt 0:00:09]} 48. a3 {[%emt 0:00:16]} Rxc4 {[%emt 0:00:30]} 49. Rc5 {[%emt 0:00:01]} Rxc5 {[%emt 0:00:15]} 50. bxc5 {[%emt 0:00:01]} Kf6 {[%emt 0:00:03] Check Result:-#19} 51. Kf4 {[%emt 0:00:00]} 0-1

[Event "Asian Amateur Rapid 2024"]
[Site "Al Ain"]
[Date "2024.12.15"]
[Round "6.24"]
[White "Mosallam, Mohammad"]
[Black "Saud Bader Huwair Alzarooni"]
[Result "1-0"]
[ECO "B23"]
[WhiteElo "1753"]
[BlackElo "1644"]
[Annotator "NA COMBH"]
[PlyCount "64"]
[EventDate "2024.12.15"]
[EventType "swiss"]
[EventCountry "UAE"]
[SourceTitle "playchess.com"]
[Source "ChessBase"]
[SourceQuality "1"]
[TimeControl "900+10"]

1. e4 {[%emt 0:00:03]} c5 {[%emt 0:00:01]} 2. Nc3 {[%emt 0:00:01]} Nc6 {[%emt 0:00:03]} 3. f4 {[%emt 0:00:01]} e6 {[%emt 0:00:03]} 4. Nf3 {[%emt 0:00:01]} Nge7 {[%emt 0:00:02]} 5. a3 {[%emt 0:00:04]} d5 {[%emt 0:00:08]} 6. b4 {[%emt 0:00:04]} cxb4 {[%emt 0:01:09]} 7. axb4 {[%emt 0:00:03]} Nxb4 {[%emt 0:00:09]} 8. Ba3 {[%emt 0:00:02]} Nec6 {[%emt 0:00:33]} 9. e5 {[%emt 0:01:17]} d4 {[%emt 0:01:38]} 10. Ne4 {[%emt 0:01:20]} d3 {[%emt 0:04:11]} 11. cxd3 {[%emt 0:00:38]} Nxd3+ {[%emt 0:01:31]} 12. Bxd3 {[%emt 0:00:02]} Qxd3 {[%emt 0:00:14]} 13. Qe2 {[%emt 0:01:49]} Qxe2+ {[%emt 0:00:39]} 14. Kxe2 {[%emt 0:00:02]} Bxa3 {[%emt 0:00:12]} 15. Rxa3 {[%emt 0:00:01]} O-O {[%emt 0:00:44]} 16. Nd6 {[%emt 0:00:03]} b6 {[%emt 0:02:19]} 17. Rb1 {[%emt 0:00:31]} Rb8 {[%emt 0:00:33]} 18. Rc1 {[%emt 0:02:45]} Bd7 {[%emt 0:00:18]} 19. Rac3 {[%emt 0:00:33]} Nb4 {[%emt 0:03:53]} 20. Rc7 {[%emt 0:00:11]} Bc6 {[%emt 0:00:00]} 21. R1xc6 {[%emt 0:00:53]} Nxc6 {[%emt 0:00:00]} 22. Rxc6 {[%emt 0:00:02]} b5 {[%emt 0:00:00]} 23. Nd4 {[%emt 0:00:52]} b4 {[%emt 0:00:00]} 24. Nb3 {[%emt 0:00:04]} a5 {[%emt 0:00:16]} 25. Ra6 {[%emt 0:00:03]} Ra8 {[%emt 0:00:20]} 26. Rxa5 {[%emt 0:00:05]} Rxa5 {[%emt 0:00:02]} 27. Nxa5 {[%emt 0:00:01]} Ra8 {[%emt 0:00:01]} 28. Ndc4 {[%emt 0:00:16]} Rd8 {[%emt 0:00:17]} 29. d3 {[%emt 0:01:55]} f6 {[%emt 0:00:06]} 30. Nc6 {[%emt 0:00:15]} Rd5 {[%emt 0:00:32]} 31. Nxb4 {[%emt 0:00:14]} Rb5 {[%emt 0:00:01]} 32. Nc6 {[%emt 0:00:05] Check Result:#37} Kf7 {[%emt 0:00:35]} 1-0

[Event "Asian Amateur Rapid 2024"]
[Site "Al Ain"]
[Date "2024.12.15"]
[Round "6.25"]
[White "Obado, Sean Adrich"]
[Black "Kim, Taewoo A"]
[Result "1-0"]
[ECO "B22"]
[WhiteElo "1605"]
[BlackElo "1863"]
[Annotator "NA COMBH"]
[PlyCount "87"]
[EventDate "2024.12.15"]
[EventType "swiss"]
[EventCountry "UAE"]
[SourceTitle "playchess.com"]
[Source "ChessBase"]
[SourceQuality "1"]
[TimeControl "900+10"]

1. e4 {[%emt 0:00:03]} c5 {[%emt 0:00:01]} 2. c3 {[%emt 0:00:01]} Nf6 {[%emt 0:00:02]} 3. e5 {[%emt 0:00:01]} Nd5 {[%emt 0:00:01]} 4. d4 {[%emt 0:00:01]} d6 {[%emt 0:00:04]} 5. Nf3 {[%emt 0:00:41]} Nc6 {[%emt 0:00:03]} 6. Bc4 {[%emt 0:01:04]} dxe5 {[%emt 0:00:40]} 7. Nxe5 {[%emt 0:01:01]} Nxe5 {[%emt 0:01:21]} 8. dxe5 {[%emt 0:00:01]} e6 {[%emt 0:00:16]} 9. O-O {[%emt 0:00:20]} Be7 {[%emt 0:00:14]} 10. Qg4 {[%emt 0:00:09]} Kf8 {[%emt 0:01:09]} 11. Nd2 {[%emt 0:00:41]} h5 {[%emt 0:00:29]} 12. Qf3 {[%emt 0:00:19]} b6 {[%emt 0:01:12]} 13. Ne4 {[%emt 0:01:08]} Bb7 {[%emt 0:00:08]} 14. Bf4 {[%emt 0:01:16]} g5 {[%emt 0:01:58]} 15. Bd2 {[%emt 0:02:54]} g4 {[%emt 0:00:11]} 16. Qe2 {[%emt 0:00:06]} a6 {[%emt 0:01:21]} 17. f3 {[%emt 0:00:11]} b5 {[%emt 0:00:38]} 18. Bb3 {[%emt 0:00:15]} Qb6 {[%emt 0:00:29]} 19. Kh1 {[%emt 0:00:32]} Qc7 {[%emt 0:01:29]} 20. fxg4 {[%emt 0:01:40]} Qxe5 {[%emt 0:00:39]} 21. Rxf7+ {[%emt 0:00:57]} Kxf7 {[%emt 0:01:02]} 22. Ng5+ {[%emt 0:00:02]} Qxg5 {[%emt 0:00:02]} 23. Bxg5 {[%emt 0:00:04]} Bxg5 {[%emt 0:00:02]} 24. Qe5 {[%emt 0:00:45]} c4 {[%emt 0:04:37]} 25. Rf1+ {[%emt 0:00:28]} Bf6 {[%emt 0:00:01]} 26. Bc2 {[%emt 0:00:43]} Ke7 {[%emt 0:00:09]} 27. Qe4 {[%emt 0:01:16]} hxg4 {[%emt 0:00:20]} 28. Re1 {[%emt 0:00:03]} e5 {[%emt 0:00:18]} 29. Qxg4 {[%emt 0:00:57]} Rag8 {[%emt 0:00:29]} 30. Qf3 {[%emt 0:00:16]} Ba8 {[%emt 0:00:21]} 31. Be4 {[%emt 0:00:17]} Nc7 {[%emt 0:00:34]} 32. Bxa8 {[%emt 0:00:55]} Rxa8 {[%emt 0:00:00]} 33. Qc6 {[%emt 0:00:04]} Rac8 {[%emt 0:00:00]} 34. Rd1 {[%emt 0:00:08]} Kf7 {[%emt 0:00:19]} 35. Rd7+ {[%emt 0:00:05]} Kg6 {[%emt 0:00:02]} 36. Qe4+ {[%emt 0:00:33]} Kg5 {[%emt 0:00:04]} 37. g3 {[%emt 0:00:29]} Rh3 {[%emt 0:00:20]} 38. Qe3+ {[%emt 0:00:31]} Kg6 {[%emt 0:00:04]} 39. Qf3 {[%emt 0:00:19]} Rch8 {[%emt 0:00:15]} 40. Qg4+ {[%emt 0:00:05]} Bg5 {[%emt 0:00:03]} 41. Rd6+ {[%emt 0:00:01]} Kf7 {[%emt 0:00:08]} 42. Qf5+ {[%emt 0:00:06]} Ke7 {[%emt 0:00:12]} 43. Rd7+ {[%emt 0:00:03]} Ke8 {[%emt 0:00:01] Check Result:?ev?} 44. Qf7# {[%emt 0:00:00]} 1-0

[Event "Asian Amateur Rapid 2024"]
[Site "Al Ain"]
[Date "2024.12.15"]
[Round "6.26"]
[White "Alviz, Joshua Ezekiel"]
[Black "Aamer Saeed, Alyileili"]
[Result "1-0"]
[ECO "B22"]
[WhiteElo "1766"]
[BlackElo "1619"]
[Annotator "NA COMBH"]
[PlyCount "53"]
[EventDate "2024.12.15"]
[EventType "swiss"]
[EventCountry "UAE"]
[SourceTitle "playchess.com"]
[Source "ChessBase"]
[SourceQuality "1"]
[TimeControl "900+10"]

1. e4 {[%emt 0:00:02]} c6 {[%emt 0:00:01]} 2. d4 {[%emt 0:00:01]} d5 {[%emt 0:00:00]} 3. exd5 {[%emt 0:00:01]} cxd5 {[%emt 0:00:01]} 4. c4 {[%emt 0:00:01]} Nc6 {[%emt 0:00:09]} 5. cxd5 {[%emt 0:00:04]} Qxd5 {[%emt 0:00:04]} 6. Nf3 {[%emt 0:00:01]} Bg4 {[%emt 0:00:23]} 7. Nc3 {[%emt 0:00:02]} Qd8 {[%emt 0:00:09]} 8. d5 {[%emt 0:00:01]} Bxf3 {[%emt 0:02:10]} 9. gxf3 {[%emt 0:01:11]} Ne5 {[%emt 0:00:24]} 10. Qa4+ {[%emt 0:00:19]} Nd7 {[%emt 0:00:07]} 11. Bf4 {[%emt 0:00:56]} a6 {[%emt 0:03:13]} 12. Bh3 {[%emt 0:00:49]} b5 {[%emt 0:00:43]} 13. Qd4 {[%emt 0:00:01]} Ngf6 {[%emt 0:00:14]} 14. O-O {[%emt 0:00:40]} g6 {[%emt 0:01:11]} 15. d6 {[%emt 0:01:12]} e6 {[%emt 0:01:11]} 16. Rfe1 {[%emt 0:00:23]} Bg7 {[%emt 0:00:36]} 17. Bxe6 {[%emt 0:00:47]} O-O {[%emt 0:00:41]} 18. Bxd7 {[%emt 0:01:23]} Nxd7 {[%emt 0:00:25]} 19. Qd2 {[%emt 0:00:24]} Nc5 {[%emt 0:01:12]} 20. Nd5 {[%emt 0:00:57]} Ne6 {[%emt 0:01:11]} 21. Bg3 {[%emt 0:00:44]} Re8 {[%emt 0:00:39]} 22. Rad1 {[%emt 0:00:32]} Kh8 {[%emt 0:02:26]} 23. Kg2 {[%emt 0:00:31]} Qg5 {[%emt 0:00:36]} 24. Rxe6 {[%emt 0:00:22]} Qxd2 {[%emt 0:00:13]} 25. Rxe8+ {[%emt 0:00:02]} Rxe8 {[%emt 0:00:01]} 26. Rxd2 {[%emt 0:00:01]} Rd8 {[%emt 0:00:04] Check Result:12.31} 27. Nb6 {[%emt 0:00:14]} 1-0

[Event "Asian Amateur Rapid 2024"]
[Site "Al Ain"]
[Date "2024.12.15"]
[Round "6.28"]
[White "Amirgali, Nurali"]
[Black "Al Mamari, Said Ahmed"]
[Result "0-1"]
[ECO "B03"]
[WhiteElo "1572"]
[BlackElo "1707"]
[Annotator "NA COMBH"]
[PlyCount "46"]
[EventDate "2024.12.15"]
[EventType "swiss"]
[EventCountry "UAE"]
[SourceTitle "playchess.com"]
[Source "ChessBase"]
[SourceQuality "1"]
[TimeControl "900+10"]

1. e4 {[%emt 0:00:01]} Nf6 {[%emt 0:00:02]} 2. e5 {[%emt 0:00:03]} Nd5 {[%emt 0:00:02]} 3. c4 {[%emt 0:00:02]} Nb6 {[%emt 0:00:01]} 4. d4 {[%emt 0:00:02]} d6 {[%emt 0:00:01]} 5. f4 {[%emt 0:00:14]} dxe5 {[%emt 0:00:02]} 6. fxe5 {[%emt 0:00:02]} Nc6 {[%emt 0:00:05]} 7. Be3 {[%emt 0:00:13]} Bf5 {[%emt 0:00:03]} 8. Nf3 {[%emt 0:00:07]} e6 {[%emt 0:00:03]} 9. Bd3 {[%emt 0:00:29]} Bg4 {[%emt 0:00:21]} 10. Nbd2 {[%emt 0:01:17]} Be7 {[%emt 0:00:03]} 11. O-O {[%emt 0:00:03]} O-O {[%emt 0:00:42]} 12. Qc2 {[%emt 0:00:11]} g6 {[%emt 0:00:21]} 13. Bh6 {[%emt 0:02:04]} Nxd4 {[%emt 0:00:17]} 14. Nxd4 {[%emt 0:00:31]} Qxd4+ {[%emt 0:00:06]} 15. Kh1 {[%emt 0:00:10]} Rfd8 {[%emt 0:00:05]} 16. Rxf7 {[%emt 0:12:21]} Kxf7 {[%emt 0:00:05]} 17. Bxg6+ {[%emt 0:00:00]} hxg6 {[%emt 0:00:04]} 18. Rf1+ {[%emt 0:00:00]} Bf5 {[%emt 0:00:51]} 19. g4 {[%emt 0:00:00]} Qxg4 {[%emt 0:00:28]} 20. c5 {[%emt 0:00:00]} Rh8 {[%emt 0:00:34]} 21. cxb6 {[%emt 0:00:00]} Rxh6 {[%emt 0:00:05]} 22. bxc7 {[%emt 0:00:00]} Rxh2+ {[%emt 0:00:09]} 23. Kxh2 {[%emt 0:00:00] Check Result:?ev?} Rh8# {[%emt 0:14:30]} 0-1

[Event "Asian Amateur Rapid 2024"]
[Site "Al Ain"]
[Date "2024.12.15"]
[Round "6.29"]
[White "Sharfa, Farukh"]
[Black "nawaf saleh basabaien"]
[Result "0-1"]
[ECO "A54"]
[WhiteElo "1536"]
[BlackElo "1729"]
[Annotator "NA COMBH"]
[PlyCount "102"]
[EventDate "2024.12.15"]
[EventType "swiss"]
[EventCountry "UAE"]
[SourceTitle "playchess.com"]
[Source "ChessBase"]
[SourceQuality "1"]
[TimeControl "900+10"]

1. Nf3 {[%emt 0:00:03]} d6 {[%emt 0:00:02]} 2. d4 {[%emt 0:00:07]} Nf6 {[%emt 0:00:03]} 3. c4 {[%emt 0:00:14]} Nbd7 {[%emt 0:00:03]} 4. Nc3 {[%emt 0:00:29]} e5 {[%emt 0:00:03]} 5. Bg5 {[%emt 0:01:14]} Be7 {[%emt 0:00:03]} 6. dxe5 {[%emt 0:00:18]} dxe5 {[%emt 0:00:05]} 7. e3 {[%emt 0:00:27]} c6 {[%emt 0:00:08]} 8. Qc2 {[%emt 0:00:16]} Qc7 {[%emt 0:00:18]} 9. Be2 {[%emt 0:00:29]} O-O {[%emt 0:00:25]} 10. O-O {[%emt 0:00:33]} Re8 {[%emt 0:00:31]} 11. Bh4 {[%emt 0:00:33]} Bf8 {[%emt 0:00:32]} 12. Bg3 {[%emt 0:00:06]} h6 {[%emt 0:00:15]} 13. Nd2 {[%emt 0:00:38]} a5 {[%emt 0:00:46]} 14. a3 {[%emt 0:00:16]} b6 {[%emt 0:02:10]} 15. h3 {[%emt 0:00:06]} Bb7 {[%emt 0:00:08]} 16. Bf3 {[%emt 0:00:07]} Nh7 {[%emt 0:00:39]} 17. h4 {[%emt 0:01:10]} Rad8 {[%emt 0:00:46]} 18. Rad1 {[%emt 0:00:07]} Bc8 {[%emt 0:01:27]} 19. Rfe1 {[%emt 0:00:11]} Nc5 {[%emt 0:00:37]} 20. Nb3 {[%emt 0:01:35]} Be6 {[%emt 0:00:35]} 21. Nxc5 {[%emt 0:01:33]} Bxc5 {[%emt 0:00:04]} 22. Ne2 {[%emt 0:00:54]} f5 {[%emt 0:00:31]} 23. Kh1 {[%emt 0:01:42]} Nf6 {[%emt 0:00:42]} 24. Ng1 {[%emt 0:00:04]} Bd6 {[%emt 0:00:39]} 25. Nh3 {[%emt 0:00:45]} f4 {[%emt 0:01:02]} 26. exf4 {[%emt 0:00:08]} exf4 {[%emt 0:01:21]} 27. Bxf4 {[%emt 0:01:35]} Bxf4 {[%emt 0:00:38]} 28. Rxd8 {[%emt 0:00:11]} Rxd8 {[%emt 0:01:38]} 29. Rxe6 {[%emt 0:00:04]} Bd6 {[%emt 0:01:48]} 30. Qg6 {[%emt 0:00:49]} Qf7 {[%emt 0:01:29]} 31. Qf5 {[%emt 0:00:31]} c5 {[%emt 0:00:18]} 32. b3 {[%emt 0:00:31]} Bb8 {[%emt 0:00:09]} 33. Rxb6 {[%emt 0:00:29]} Qc7 {[%emt 0:00:02]} 34. Rxb8 {[%emt 0:00:11]} Qxb8 {[%emt 0:00:01]} 35. Qxc5 {[%emt 0:00:19]} Qxb3 {[%emt 0:00:14]} 36. Nf4 {[%emt 0:00:15]} Qb1+ {[%emt 0:00:38]} 37. Kh2 {[%emt 0:00:05]} Qe1 {[%emt 0:00:10]} 38. Kg3 {[%emt 0:00:28]} Ne4+ {[%emt 0:00:10]} 39. Bxe4 {[%emt 0:00:01]} Qxe4 {[%emt 0:00:02]} 40. Qxa5 {[%emt 0:00:34]} Rd4 {[%emt 0:00:07]} 41. Qc7 {[%emt 0:00:21]} Rxc4 {[%emt 0:00:12]} 42. Qb8+ {[%emt 0:00:12]} Kh7 {[%emt 0:00:01]} 43. h5 {[%emt 0:00:22]} Rc3+ {[%emt 0:00:03]} 44. f3 {[%emt 0:00:17]} Qf5 {[%emt 0:00:16]} 45. a4 {[%emt 0:00:38]} Qg5+ {[%emt 0:00:07]} 46. Kh3 {[%emt 0:00:08]} Qf5+ {[%emt 0:00:20]} 47. Kg3 {[%emt 0:00:02]} Rc4 {[%emt 0:00:06]} 48. a5 {[%emt 0:00:40]} Qg5+ {[%emt 0:00:01]} 49. Kh3 {[%emt 0:00:08]} Rxf4 {[%emt 0:00:04]} 50. a6 {[%emt 0:00:08]} Qxh5+ {[%emt 0:00:07]} 51. Kg3 {[%emt 0:00:02] Check Result:?ev?} Qh4# {[%emt 0:00:01]} 0-1

[Event "Asian Amateur Rapid 2024"]
[Site "Al Ain"]
[Date "2024.12.15"]
[Round "6.30"]
[White "Mohamed Yousuf Al-Ali"]
[Black "Al Sabti, Wadhah"]
[Result "1-0"]
[ECO "E97"]
[WhiteElo "1569"]
[BlackElo "1470"]
[Annotator "NA COMBH"]
[PlyCount "73"]
[EventDate "2024.12.15"]
[EventType "swiss"]
[EventCountry "UAE"]
[SourceTitle "playchess.com"]
[Source "ChessBase"]
[SourceQuality "1"]
[TimeControl "900+10"]

1. d4 {[%emt 0:00:02]} Nf6 {[%emt 0:00:04]} 2. Nf3 {[%emt 0:00:01]} g6 {[%emt 0:00:03]} 3. c4 {[%emt 0:00:01]} Bg7 {[%emt 0:00:03]} 4. Nc3 {[%emt 0:00:02]} O-O {[%emt 0:00:04]} 5. e4 {[%emt 0:00:02]} d6 {[%emt 0:00:03]} 6. Be2 {[%emt 0:00:01]} Qe8 {[%emt 0:00:43]} 7. e5 {[%emt 0:00:30]} dxe5 {[%emt 0:00:21]} 8. dxe5 {[%emt 0:00:01]} Ng4 {[%emt 0:00:40]} 9. Bf4 {[%emt 0:00:06]} Nc6 {[%emt 0:00:01]} 10. Nb5 {[%emt 0:00:20]} Qd8 {[%emt 0:00:52]} 11. Qxd8 {[%emt 0:00:13]} Rxd8 {[%emt 0:00:02]} 12. Nxc7 {[%emt 0:00:02]} Rb8 {[%emt 0:00:05]} 13. Nd5 {[%emt 0:00:04]} e6 {[%emt 0:00:18]} 14. Nf6+ {[%emt 0:01:24]} Kh8 {[%emt 0:00:18]} 15. Nxg4 {[%emt 0:00:02]} Nb4 {[%emt 0:00:29]} 16. O-O {[%emt 0:00:17]} Bd7 {[%emt 0:00:09]} 17. a3 {[%emt 0:00:05]} Nc6 {[%emt 0:00:04]} 18. Rad1 {[%emt 0:00:09]} h5 {[%emt 0:00:22]} 19. Nf6 {[%emt 0:00:05]} Bxf6 {[%emt 0:00:16]} 20. exf6 {[%emt 0:00:01]} Rbc8 {[%emt 0:00:04]} 21. Bd6 {[%emt 0:00:16]} b6 {[%emt 0:00:16]} 22. Be7 {[%emt 0:00:02]} Nxe7 {[%emt 0:00:06]} 23. fxe7 {[%emt 0:00:01]} Re8 {[%emt 0:00:04]} 24. Rxd7 {[%emt 0:00:01]} a5 {[%emt 0:00:02]} 25. a4 {[%emt 0:00:03]} Kg7 {[%emt 0:00:09]} 26. Rfd1 {[%emt 0:00:02]} Kf6 {[%emt 0:00:07]} 27. h4 {[%emt 0:00:19]} Rxe7 {[%emt 0:00:09]} 28. R7d6 {[%emt 0:00:04]} Kg7 {[%emt 0:00:13]} 29. Rxb6 {[%emt 0:00:03]} e5 {[%emt 0:00:14]} 30. Rb5 {[%emt 0:00:08]} e4 {[%emt 0:00:03]} 31. Ng5 {[%emt 0:00:02]} e3 {[%emt 0:00:03]} 32. fxe3 {[%emt 0:00:27]} Rxe3 {[%emt 0:00:02]} 33. Rb7 {[%emt 0:00:13]} Rxe2 {[%emt 0:00:16]} 34. Rxf7+ {[%emt 0:00:02]} Kg8 {[%emt 0:00:01]} 35. Rd6 {[%emt 0:00:11]} Rxc4 {[%emt 0:01:39]} 36. Rd8+ {[%emt 0:00:04]} Re8 {[%emt 0:00:03] Check Result:?ev?} 37. Rxe8# {[%emt 0:00:00]} 1-0

[Event "Asian Amateur Rapid 2024"]
[Site "Al Ain"]
[Date "2024.12.15"]
[Round "6.31"]
[White "Pathak Anshu Kr"]
[Black "Ahmed Younes Alkhemeiri"]
[Result "1-0"]
[ECO "C45"]
[WhiteElo "1661"]
[BlackElo "1584"]
[Annotator "NA COMBH"]
[PlyCount "49"]
[EventDate "2024.12.15"]
[EventType "swiss"]
[EventCountry "UAE"]
[SourceTitle "playchess.com"]
[Source "ChessBase"]
[SourceQuality "1"]
[TimeControl "900+10"]

1. e4 {[%emt 0:00:04]} e5 {[%emt 0:00:01]} 2. Nf3 {[%emt 0:00:03]} Nc6 {[%emt 0:00:02]} 3. d4 {[%emt 0:00:02]} exd4 {[%emt 0:00:04]} 4. Nxd4 {[%emt 0:00:03]} Bc5 {[%emt 0:00:02]} 5. Be3 {[%emt 0:00:08]} Nxd4 {[%emt 0:00:24]} 6. Bxd4 {[%emt 0:00:01]} Bxd4 {[%emt 0:00:02]} 7. Qxd4 {[%emt 0:00:02]} Nf6 {[%emt 0:00:12]} 8. e5 {[%emt 0:00:04]} Ng8 {[%emt 0:00:28]} 9. Nc3 {[%emt 0:00:02]} b6 {[%emt 0:00:17]} 10. Bc4 {[%emt 0:00:14]} Bb7 {[%emt 0:00:15]} 11. O-O-O {[%emt 0:00:12]} Qe7 {[%emt 0:00:53]} 12. Bd5 {[%emt 0:01:58]} c6 {[%emt 0:00:16]} 13. Nb5 {[%emt 0:00:29]} O-O-O {[%emt 0:02:46]} 14. Nd6+ {[%emt 0:00:05]} Kb8 {[%emt 0:00:01]} 15. Bxf7 {[%emt 0:00:24]} Nh6 {[%emt 0:00:15]} 16. Bb3 {[%emt 0:00:19]} c5 {[%emt 0:00:22]} 17. Qd2 {[%emt 0:01:00]} Qxe5 {[%emt 0:00:51]} 18. Rhe1 {[%emt 0:00:56]} Qf6 {[%emt 0:00:25]} 19. Nxb7 {[%emt 0:00:03]} Kxb7 {[%emt 0:00:03]} 20. Bd5+ {[%emt 0:00:05]} Kb8 {[%emt 0:00:17]} 21. Qe2 {[%emt 0:00:48]} Qg5+ {[%emt 0:01:18]} 22. Kb1 {[%emt 0:00:06]} d6 {[%emt 0:01:23]} 23. Qb5 {[%emt 0:00:14]} Qf5 {[%emt 0:01:45]} 24. Qc6 {[%emt 0:00:42]} Qd7 {[%emt 0:00:02] Check Result:#1} 25. Qa8+ {[%emt 0:00:09]} 1-0